Cogmind - Beta 10.2 @@@ ROGUE MODE // 2021.05.11 @ 13:00:13 Player: Teratos Result: Destroyed by D-53 Grenadier with Mini Grenade Launcher Performance ------------- Evolutions (0) 0 Regions Visited (2) 400 Robots Destroyed (8) 40 Value Destroyed (220) 220 Prototype IDs (2) 40 Alien Tech Used (0) 0 Bonus (0) 0 TOTAL SCORE: 700 Bonus ------- None Cogmind --------- Core Integrity 0/250 Matter 252/300 Energy 93/100 System Corruption 4% Temperature Cool (0) Movement Core (50) Location -10/Mines Parts ------- > --- POWER (1) -------- (None) > --- PROPULSION (2) --- (None) > --- UTILITY (2) ------ (None) > --- WEAPON (2) ------- (None) > --- INVENTORY (4) ---- (None) Peak State ------------ > --- POWER ------------ Light Ion Engine > --- PROPULSION ------- Light Treads Light Treads > --- UTILITY ---------- Structural Scanner > --- WEAPON ----------- EM Pulse Gun EM Pulse Gun > --- INVENTORY -------- (None) [Rating: 6] Favorites ----------- Power Light Ion Engine Engine Light Ion Engine Propulsion Light Treads Treads Light Treads Wheel Wheel Utility Structural Scanner Device Structural Scanner Weapon EM Pulse Gun Energy Gun EM Pulse Gun Ballistic Cannon Light Cannon Build | -11 -10 -10 ------- Run | Scr Mat Min Slots Evolved . | . . . Power . | . . . Propulsion . | . . . Utility . | . . . Weapon . | . . . Parts Attached 10 | 5 1 4 Power 1 | 1 . . Engine 1 | 1 . . Core . | . . . Reactor . | . . . Propulsion 4 | 2 . 2 Treads 3 | 2 . 1 Leg . | . . . Wheel 1 | . . 1 Hover . | . . . Flight . | . . . Utility 2 | . 1 1 Device 2 | . 1 1 Storage . | . . . Processor . | . . . Hackware . | . . . Protection . | . . . Artifact . | . . . Weapon 3 | 2 . 1 Energy Gun 2 | 2 . . Energy Cannon . | . . . Ballistic Gun . | . . . Ballistic Cannon 1 | . . 1 Launcher . | . . . Special Weapon . | . . . Impact Weapon . | . . . Slashing Weapon . | . . . Piercing Weapon . | . . . Special Melee Weapon . | . . . Unidentified Prototypes . | . . . Parts Lost 8 | . . 8 Power 1 | . . 1 Propulsion 2 | . . 2 Utility 2 | . . 2 Weapon 3 | . . 3 Highest Loss Streak 8 | . . 8 Average Slot Usage (%) 76 | . 82 45 Engine 12 | . 14 2 Treads 25 | . 28 14 Device 12 | . 11 14 Energy Gun 24 | . 28 8 Naked Turns 7 | . . 7 Heaviest Build 8 | 7 8 8 Greatest Support 40 | 40 40 40 Greatest Overweight (x) . | . . . Average Overweight (x) . | . . . Largest Inventory Capacity 4 | 4 4 4 Average Capacity 4 | 4 4 4 Most Carried 1 | . 1 1 Average Carried . | . . . Final Capacity 4 | 4 4 4 Final Carried 1 | . 1 . Class Distribution -------------------- 100% | Mutant Dominant Class ---------------- Mutant | -10/Materials Mutant | -10/Mines Resources | -11 -10 -10 ----------- Run | Scr Mat Min Matter Collected 256 | 57 199 . Remotely . | . . . Salvage Created 220 | . 168 52 Parts 17 | . 13 4 Haulers Intercepted . | . . . Recyclers Shooed 1 | . 1 . Parts Field Recycled . | . . . Retrieved Matter . | . . . Parts Self-Destructed . | . . . Prevented . | . . . Kills | -11 -10 -10 ------- Run | Scr Mat Min Combat Hostiles Destroyed 7 | . 4 3 Guns 3 | . 2 1 Cannons 2 | . . 2 AOE 2 | . 2 . Classes Destroyed 4 | . 2 2 Worker 1 | . 1 . Swarmer 2 | . . 2 Grunt 4 | . 4 . Demolisher 1 | . . 1 Best Kill Streak 4 | . 4 2 Combat Bots Only 3 | . 3 2 Max Kills in Single Turn 1 | . 1 1 Gunslinging . | . . . Exploded 1 | . 1 . Melee . | . . . Uniques/NPCs Destroyed . | . . . Combat | -11 -10 -10 -------- Run | Scr Mat Min Damage Taken 818 | . 93 725 Core 259 | . 29 230 Absorbed by Shields . | . . . Core Remaining (%) 100 | 100 . . Volleys Fired 22 | . 10 12 Largest 2 | . 2 2 Hottest 80 | . 80 80 Shots Fired 33 | . 20 13 Gun 22 | . 20 2 Cannon 11 | . . 11 Launcher . | . . . Special . | . . . Kinetic 11 | . . 11 Thermal . | . . . Explosive . | . . . Electromagnetic 22 | . 20 2 Robot Hit Streak 5 | . 5 4 Robot Miss Streak 5 | . 3 5 Penetration Max . | . . . Secondary Targets 1 | . . 1 Max Gunslinging Chain 1 | . . 1 Shots Hit Robots 18 | . 13 5 Core Hits 12 | . 8 4 Critical Hits . | . . . Critical Kills . | . . . Critical Parts Destroyed . | . . . Melee Attacks . | . . . Impact . | . . . Slashing . | . . . Piercing . | . . . Sneak Attacks . | . . . Combat Hostiles . | . . . Follow-up Attacks . | . . . Damage Inflicted 495 | . 355 140 Guns 198 | . 188 10 Cannons 116 | . . 116 Explosions 161 | . 161 . Melee . | . . . Ramming 20 | . 6 14 Kinetic 116 | . . 116 Thermal 161 | . 161 . Explosive . | . . . Electromagnetic 198 | . 188 10 Impact . | . . . Slashing . | . . . Piercing . | . . . Highest Corruption 4 | . . 4 Average Corruption 4 | . . 4 Corruption Purged . | . . . Overload Shots . | . . . Overflow Damage . | . . . Projectiles . | . . . Explosions . | . . . Melee . | . . . Knockbacks 1 | . . 1 Impact . | . . . Kinetic 1 | . . 1 Secondary . | . . . Self-Inflicted Damage 48 | . 42 6 Shots 3 | . 3 . Rammed 5 | . 1 4 Targets Rammed 5 | . 1 4 Kicked . | . . . Crushed . | . . . Highest Temperature 84 | . 84 38 Average Temperature 30 | . 32 15 Received Heat Transfer 70 | . 30 40 Siege Activations . | . . . Robots Corrupted . | . . . Combat Hostiles . | . . . Parts Fried . | . . . Impact Corruptions . | . . . Robots Melted . | . . . Combat Hostiles . | . . . Parts Melted . | . . . Heat Transferred 200 | . 200 . Parts Sabotaged . | . . . Parts Stolen . | . . . Parts Stripped . | . . . Power Chain Reactions 3 | . 3 . Missiles Intercepted . | . . . Alert | -11 -10 -10 ------- Run | Scr Mat Min Peak Influence 185 | . 185 102 Initial 72 | . . 72 Average 74 | . 84 80 Maximum Alert Level . | . . . Low Security (%) 100 | 100 100 100 Level 1 . | . . . Level 2 . | . . . Level 3 . | . . . Level 4 . | . . . Level 5 . | . . . High Security . | . . . Max Security . | . . . Squads Dispatched 2 | . 2 . Investigation . | . . . Extermination . | . . . Reinforcement 2 | . 2 . Assault . | . . . Garrison . | . . . Intercept . | . . . Construction Impeded . | . . . Haulers Reinforced . | . . . Stealth | -11 -10 -10 --------- Run | Scr Mat Min Distress Signals 1 | . 1 . Communications Jammed . | . . . Distress Signals . | . . . Times Spotted 32 | . 8 24 Peak Tracking Total 22 | . 3 22 Tactical Retreats 1 | . 1 . Traps | -11 -10 -10 ------- Run | Scr Mat Min Traps Triggered . | . . . Indirectly . | . . . Trap Hack Attempts . | . . . Triggered . | . . . Disarmed . | . . . Reprogrammed . | . . . Reused . | . . . Traps Extracted . | . . . Installed . | . . . Triggered . | . . . Machines | -11 -10 -10 ---------- Run | Scr Mat Min Machines Disabled 1 | . 1 . Max in Single Turn 1 | . 1 . Machines Sabotaged . | . . . Garrisons Compromised . | . . . Overloaded Fab Kills . | . . . Fab Network Shutdowns . | . . . Hacking | -11 -10 -10 --------- Run | Scr Mat Min Machines Accessed 1 | . 1 . Terminals 1 | . 1 . Fabricators . | . . . Repair Stations . | . . . Recycling Units . | . . . Scanalyzers . | . . . Garrison Access . | . . . Total Hacks 2 | . 2 . Successful 1 | . 1 . Failed 1 | . 1 . Catastrophic . | . . . Database Lockouts . | . . . Manual . | . . . Terminals 2 | . 2 . Fabricators . | . . . Repair Stations . | . . . Recycling Units . | . . . Scanalyzers . | . . . Garrison Access . | . . . Terminal Hacks 1 | . 1 . Prototype ID Bank 1 | . 1 . Fabricator Hacks . | . . . Repair Station Hacks . | . . . Recycling Unit Hacks . | . . . Scanalyzer . | . . . Garrison Access Hacks . | . . . Unauthorized Hacks . | . . . Terminals . | . . . Fabricators . | . . . Repair Stations . | . . . Recycling Units . | . . . Scanalyzers . | . . . Garrison Access . | . . . Data Cores Recovered . | . . . Used . | . . . Hacking Detections 1 | . 1 . Full Trace Events . | . . . Feedback Events . | . . . Feedback Blocked . | . . . Robot Schematics Acquired . | . . . Robots Built . | . . . Matter . | . . . Time . | . . . Total Robot Build Rating . | . . . Part Schematics Acquired . | . . . Parts Built . | . . . Matter . | . . . Time . | . . . Total Part Build Rating . | . . . Parts Repaired . | . . . Time . | . . . Parts Recycled . | . . . Recycled Matter . | . . . Retrieved Matter . | . . . Retrieved Components . | . . . Parts Scanalyzed . | . . . Part Schematics Acquired . | . . . Parts Damaged . | . . . Bothacking | -11 -10 -10 ------------ Run | Scr Mat Min Used RIF Installer . | . . . Robots Hacked . | . . . Non-combat . | . . . Combat . | . . . Robot Hacks Applied . | . . . Relay Couplers Released . | . . . Robots Rewired . | . . . Allies Hacked . | . . . Hacks Repelled . | . . . Allies | -11 -10 -10 -------- Run | Scr Mat Min Total Allies . | . . . Largest Group . | . . . Highest-Rated Group . | . . . Highest-Rated Ally . | . . . Total Orders . | . . . Ally Attacks . | . . . Total Damage . | . . . Kills . | . . . Allies Corrupted . | . . . Allies Melted . | . . . Intel | -11 -10 -10 ------- Run | Scr Mat Min Robot Analysis Total . | . . . Derelict Logs Recovered . | . . . Drone Launches . | . . . Drone Recoveries . | . . . Exploration | -11 -10 -10 ------------- Run | Scr Mat Min Turns Passed 358 | 41 261 56 Spaces Moved 183 | 24 138 21 Core 13 | 3 . 10 Treads 168 | 21 138 9 Legs . | . . . Wheels 2 | . . 2 Hover . | . . . Flight . | . . . Fastest Speed 50 | 50 160 50 Average Speed 151 | 146 160 100 Slowest Speed 160 | 160 160 160 Overloaded Moves . | . . . Propulsion Burnouts . | . . . Robots Hopped . | . . . Cave-ins Triggered . | . . . Exploration Rate (%) 14 | 4 28 11 Regions Visited 2 Branch Regions 1 Pre-discovered Areas . | . . . Known Exits Taken . | . . . Unknown Exits Taken 2 | 1 1 . Scrap Searched . | . . . Spaces Dug . | . . . Terrain Destroyed 7 | . 6 1 Melee . | . . . Projectile 1 | . . 1 AOE 6 | . 6 . Terrain Rammed . | . . . Walls Destroyed . | . . . Machines Disabled . | . . . Actions | -11 -10 -10 --------- Run | Scr Mat Min Total 228 | 28 157 43 Wait 6 | . 6 . Move 181 | 23 137 21 Hop . | . . . Pick Up 1 | . 1 . Fast Attach 9 | 5 1 3 Attach 1 | . . 1 Detach . | . . . Swap . | . . . Drop 2 | . . 2 Fire 22 | . 10 12 Melee . | . . . Ram 4 | . . 4 Kick . | . . . Crush 1 | . 1 . Escape Stasis . | . . . Rewire 1 | . 1 . Trap . | . . . Miscellaneous . | . . . Route ------- -11/Scrapyard -10/Materials -10/Mines (discovered 1 exit: [*Mat]) History --------- Turn | Location | Event 16 | -11/Scrapyard | Discovered new exit (range 16) 42 | -11/Scrapyard | Entered Materials 273 | -10/Materials | Discovered new exit (range 8) 303 | -10/Materials | Entered Mines 304 | -10/Mines | Assembled infested the area 309 | -10/Mines | Assisted by a Guerilla fighting off Assembled 314 | -10/Mines | Build established: Mutant 347 | -10/Mines | Discovered new exit (range 11) 349 | -10/Mines | Core integrity fell below 50% 353 | -10/Mines | Core integrity fell below 20% 359 | -10/Mines | Destroyed by D-53 Grenadier with Mini Grenade Launcher Last Messages --------------- 00347_ The unstable cave ceiling collapses. 00347_ U-05 Engineer lays Concrete. 00347_ K-01 Serf collects debris. 00347_ EXIT=FOUND 00348_ U-05 Engineer builds a Wall. 00348_ U-05 Engineer destroyed. 00348_ Acquired Terrain Scanner. 00350_ K-01 Serf collects debris. 00351_ Slammed into D-53 Grenadier. 00351_ Terrain Scanner destroyed. 00351_ System corrupted by crushing effect (+4). 00352_ Slammed into D-53 Grenadier. 00353_ The unstable cave ceiling collapses. 00353_ Slammed into D-53 Grenadier. 00354_ K-01 Serf collects debris. 00356_ Acquired Wheel. 00357_ The unstable cave ceiling collapses. 00357_ K-01 Serf collects debris. 00359_ Slammed into D-53 Grenadier. 00359_ Wheel destroyed. Map ----- +----------------------------------------------------+ | ??????????????????????????????????????????????? | | ??????????????????????????????????????????????? | | ??????????????????????????????????????????????? | | ??????????????????????????????????????????????? | | ??????????????????????????????????????????????? | | ??????????????????????????????????????????????? | | ??????????????????????????????????????????????? | | ??????????????????????????????????????????????? | | ??????????????????????????????????????????????? | | ??????????????????????????????????????????????? | | ??????????????????????????????????????????????? | | ??????????????????????????????????????????????? | | ??????????????????????????????????????????????? | | ??????????????????????????????????????????????? | | ??????????????????????????????????????????????? | | ??????????????????????????????????????????????? | | ???????????????????????????????????#??????????? | | ?????????????????????????????????? #??????????? | | ????????????????????????????????? #??????????? | | ???????????????????????????????## #??????????? | | ?????????????????????###?????? #??????????? | | ?????????????????????# ###### k #???????????? | | ??????????????????#?## # #???????????? | | ?????????????????## # #????????????? | | ??????????????# ### d #??????????????? | | ??????????##### @ % ##??????????????? | | ????????? ## #???????????????? | | ???????? ## #?????#?????????? | | ??????? #$### #?????????? | | ?????????# " #????????? | | ??????????# ### < #????????? | | ??????????## # ##??? ?? #???????? | | ???????????### # ## #k #???? ?????????? | | ?????????????#?#### # #????? #????????? | | ??????????????????## ##??????##????????? | | ?????????????????? # ###?????????????????? | | ?????????????????## ####???????????????????? | | ??????????????????# ???????????????????????? | | ?????????????????# #???????????????????????? | | ????????????????? ????????????????????????? | | ???????????????? ???????????????????????? | | ???????????????# ????????????????????????? | | ??????????????? ?????????????????????????? | | ??????????????? ?????????????????????????? | | ????????????????? #?????????????????????????? | | ??????????????????????????????????????????????? | | ??????????????????????????????????????????????? | | ??????????????????????????????????????????????? | | ??????????????????????????????????????????????? | | ??????????????????????????????????????????????? | +----------------------------------------------------+ Best States ------------- Heat Dissipation 25 Energy Generation 10 Energy Capacity 125 Matter Stores 300 Matter Capacity 300 Sight Range 16 Terrain Scan Range 14 Terrain Scan Density 10 Evasion (%) 50 Recoil Reduction 2 Item Schematics ----------------- None Robot Schematics ------------------ None Fabricated ------------ Nothing Alien Tech Used ----------------- None Achievements -------------- None Challenges ------------ None Game ------ Seed LaserBiometalBeamcaster Manual? 0 Play Time 00:04:30 Cumulative 56.7 hours Start 2021.05.11 @ 12:57:03 End 2021.05.11 @ 13:00:13 Sessions 1 Manual Loads 0 Difficulty Rogue Special Mode None Game No. 127 Rogue 127 Adventurer 0 Explorer 0 Win Type - Total 0 Types 0/0/0/0/0/0/0/0/0 Lore% 25 Gallery% 32 Achievement% 26 Wizard Run 0 Options --------- ASCII 0 Keyboard 0 Movement Numpad Keybinds 0 Fullscreen 1 Font 12/Smallcaps Map View 83x54 Tactical HUD 1 Map Filters NONE Filters NONE Steam 1 RUN: 638d03e8-edd9-4d33-b1f6-def3937124a8